bitfinex-derivatives/quotes_ETHF0:USTF0_20250831
["timestamp","ask_amount","ask_price","bid_price","bid_amount"]
[1756655339606,0.232,4485.7,4484.4,0.45496]
[1756655339805,3.2078,4485.3,4485.2,0.4699]
[1756655340205,3.4398,4485.3,4485.2,0.4699]
[1756655341206,3.4398,4485.3,4484.5,0.2863]
[1756655341407,3.4398,4485.3,4484.5,0.4699]
[1756655341706,0.22297,4485.2,4484.2,3.3914]
[1756655342007,3.2078,4485.3,4485.0,0.4699]
[1756655342207,0.232,4485.2,4485.1,0.2863]
[1756655342606,0.232,4485.2,4484.3,0.2863]
[1756655343111,0.232,4485.2,4484.3,0.4699]
[1756655343706,0.232,4485.2,4484.2,3.2078]
[1756655343707,0.232,4485.2,4484.4,0.2863]
[1756655343910,3.2078,4485.3,4484.4,0.2863]
[1756655344108,3.2078,4485.3,4485.2,0.1836]
[1756655344310,3.2078,4485.3,4485.0,0.1836]
[1756655344508,0.232,4485.2,4485.1,0.4699]
[1756655344909,0.232,4485.2,4484.3,0.2863]
[1756655345412,0.232,4485.1,4485.0,0.1836]
[1756655345612,0.232,4485.1,4485.0,0.2863]
[1756655346009,3.2078,4485.3,4485.0,0.4699]
[1756655346209,3.2078,4485.3,4484.0,3.98704384]
[1756655346210,3.2078,4485.3,4485.2,0.4699]
[1756655346415,3.4398,4485.3,4485.2,0.4699]
[1756655347416,0.232,4485.5,4485.4,0.1836]
[1756655347610,3.2078,4485.8,4485.7,0.4699]
[1756655347808,3.4398,4485.8,4485.7,0.4699]
[1756655348208,3.4398,4485.8,4484.6,3.98704384]
[1756655348414,3.4398,4485.8,4484.8,0.2983]
[1756655348614,3.2091,4485.8,4485.7,0.4834]
[1756655348809,3.4411,4485.8,4485.7,0.4834]
[1756655350215,3.4411,4485.8,4484.6,3.98704384]
[1756655350216,3.4411,4485.8,4484.7,0.2983]
[1756655351121,0.0013,4484.8,4484.7,0.4834]
[1756655351423,0.187,4484.9,4484.8,0.2983]
[1756655351615,0.232,4485.2,4485.1,0.1851]
[1756655351821,0.0013,4485.2,4485.1,0.1851]
[1756655352321,0.0013,4485.2,4485.1,0.4834]
[1756655352517,0.0013,4485.2,4484.2,3.2078]
[1756655352518,3.2078,4485.4,4485.3,0.1851]
[1756655353024,3.2078,4485.4,4485.3,0.4834]
[1756655356826,3.2091,4485.4,4485.3,0.4834]
[1756655361919,3.2091,4485.4,4485.1,1.36689584]
[1756655361920,3.2091,4485.4,4485.1,0.2983]
[1756655362118,0.0013,4484.7,4484.6,0.4834]
[1756655362320,0.0013,4484.7,4484.3,0.2983]
[1756655362522,0.0013,4484.7,4484.2,3.2078]
[1756655362721,0.0013,4484.7,4484.3,0.2983]
[1756655362920,0.0013,4484.7,4484.2,3.2078]
[1756655363423,3.2078,4484.9,4484.7,0.2983]
[1756655363627,0.232,4485.3,4485.2,0.1851]
[1756655363821,0.232,4485.3,4485.2,0.4834]
[1756655364020,0.2333,4485.3,4485.2,0.4834]
[1756655364222,0.0013,4485.3,4485.2,0.4834]
[1756655364423,0.232,4485.4,4485.3,0.2983]
[1756655364628,3.2078,4485.5,4485.4,0.1851]
[1756655364828,3.2078,4485.5,4485.4,0.4834]
[1756655365623,0.232,4485.9,4485.2,1.36689584]
[1756655365624,0.232,4485.9,4485.5,0.2983]
[1756655365923,0.232,4485.9,4485.3,0.2983]
[1756655366822,3.2078,4486.1,4485.9,0.2983]
[1756655367028,3.2078,4486.1,4485.9,0.1851]
[1756655367321,3.2078,4486.1,4486.0,0.4834]
[1756655367525,3.4398,4486.1,4486.0,0.4834]
[1756655368622,3.4398,4486.1,4485.8,0.2983]
[1756655368830,3.4398,4486.1,4485.9,0.2983]
[1756655369026,3.4398,4486.1,4485.2,3.2078]
[1756655369027,3.4398,4486.1,4485.4,0.4834]
[1756655369231,5.02962584,4486.1,4485.0,0.4834]
[1756655369431,1.36689584,4485.6,4485.0,0.4834]
[1756655369630,0.232,4485.5,4485.0,0.2983]
[1756655370230,0.232,4485.5,4485.1,0.2983]
[1756655370530,0.232,4485.5,4485.3,0.1851]
[1756655370720,0.232,4485.5,4485.4,0.2983]
[1756655371326,3.2078,4486.1,4485.4,0.4834]
[1756655371526,0.232,4486.0,4485.3,1.36689584]
[1756655371733,0.232,4486.0,4485.4,0.2983]
[1756655373934,0.232,4486.0,4485.4,0.4834]
[1756655374426,3.2078,4486.1,4485.5,0.2983]
[1756655374625,3.2078,4486.1,4485.2,1.36689584]
[1756655374626,0.232,4485.9,4485.8,0.1851]
[1756655375030,0.232,4485.9,4485.6,0.2983]
[1756655375332,0.232,4485.9,4485.6,0.1851]
[1756655375630,0.232,4485.9,4485.8,0.4834]
[1756655381034,3.2078,4486.1,4486.0,0.1977]
[1756655381437,3.2078,4486.1,4486.0,0.48]
[1756655382631,3.2078,4486.7,4486.0,0.1977]
[1756655382831,3.2078,4486.7,4486.6,0.1977]
[1756655383031,3.2078,4486.7,4486.6,0.48]
[1756655384932,3.2078,4486.7,4486.1,1.36689584]
[1756655385136,0.232,4486.6,4486.3,0.1977]
[1756655385336,0.232,4486.6,4486.4,0.1977]
[1756655385537,3.2078,4486.7,4486.5,0.48]
[1756655385739,3.4398,4486.7,4486.5,0.48]
[1756655385946,3.4398,4486.7,4486.0,0.48]
[1756655386335,3.4398,4486.7,4486.6,0.48]
[1756655387435,3.4398,4486.7,4485.9,3.2078]
[1756655387739,3.4398,4486.7,4486.6,0.1977]
[1756655387936,3.4398,4486.7,4486.6,0.48]
[1756655390731,0.232,4486.7,4486.6,0.48]
[1756655391934,32.096,4487.7,4486.5,0.1977]
[1756655391935,3.2078,4486.9,4486.5,0.1977]
[1756655392130,0.232,4486.8,4486.6,0.1977]
[1756655392337,0.232,4486.8,4486.7,0.2823]
[1756655392538,0.232,4486.8,4486.4,0.48]
[1756655392732,0.232,4486.8,4486.6,0.2823]
[1756655392941,0.232,4486.8,4486.6,0.48]
[1756655393143,3.2078,4486.9,4486.7,0.2823]
[1756655393543,0.232,4486.8,4486.7,0.2823]
[1756655394230,3.9890879,4490.3,4485.9,3.2078]
[1756655394231,3.2078,4487.5,4486.9,0.2823]
[1756655394431,0.232,4487.4,4486.9,0.2823]
[1756655394632,0.232,4487.4,4487.3,0.1977]
[1756655394838,0.232,4487.4,4487.3,0.48]
[1756655395040,3.2078,4487.5,4487.3,0.1977]
[1756655395239,3.2078,4487.5,4487.4,0.48]
[1756655396037,3.2078,4488.2,4487.5,0.2823]
[1756655396237,0.45484,4488.1,4487.5,0.48]
[1756655396638,3.2078,4488.2,4487.6,0.2823]
[1756655396838,0.232,4488.1,4487.7,0.48]
[1756655397147,0.232,4488.1,4487.1,3.2078]
[1756655397148,0.232,4488.1,4487.9,0.2823]
[1756655399851,3.2078,4488.2,4488.1,0.48]
[1756655400143,3.4398,4488.2,4488.1,0.48]
[1756655400544,4.80669584,4488.2,4487.2,0.2823]
[1756655402150,3.4398,4488.2,4487.4,0.2823]
[1756655402650,3.2078,4488.2,4488.1,0.48]
[1756655402847,4.80669584,4488.2,4487.1,3.4055]
[1756655403048,1.36689584,4487.8,4487.1,3.6878]
[1756655403245,0.231,4487.7,4487.2,0.2823]
[1756655403451,0.231,4487.7,4487.6,0.48]
[1756655403950,0.231,4487.8,4487.7,0.48]
[1756655404350,3.2078,4488.2,4488.1,0.48]
[1756655404552,3.4388,4488.2,4488.1,0.48]
[1756655406355,3.2078,4488.2,4488.1,0.48]
[1756655406553,3.4388,4488.2,4488.1,0.48]
[1756655408152,3.4388,4488.2,4487.2,0.2963]
[1756655408455,1.36689584,4488.0,4487.2,0.2963]
[1756655408755,0.231,4487.9,4487.2,0.2963]
[1756655409052,0.231,4487.9,4487.8,0.4909]
[1756655409250,3.2078,4488.2,4487.9,0.2963]
[1756655409451,3.2078,4488.2,4488.1,0.4909]
[1756655410548,1.36689584,4488.6,4488.2,0.2963]
[1756655410749,1.36689584,4488.6,4488.4,0.1946]
[1756655411051,0.231,4488.5,4488.4,0.1946]
[1756655411251,0.231,4488.5,4488.4,0.4909]
[1756655412355,1.36689584,4488.6,4488.4,0.4909]
[1756655412560,0.231,4488.5,4488.4,0.1946]
[1756655413160,0.231,4488.5,4488.4,0.4909]
[1756655415461,1.36689584,4488.8,4488.5,0.2963]
[1756655415654,3.2078,4488.9,4488.8,0.4909]
[1756655415854,4.80569584,4488.9,4488.8,0.4909]
[1756655416053,4.80569584,4488.9,4487.9,1.36689584]
[1756655416254,4.80569584,4488.9,4488.0,0.2963]
[1756655416750,4.57469584,4488.9,4488.8,0.1946]
[1756655416957,4.80569584,4488.9,4488.8,0.4909]
[1756655419063,3.2078,4488.9,4488.8,0.4909]
[1756655419366,3.4388,4488.9,4488.8,0.4909]
[1756655420459,3.2078,4488.9,4488.8,0.4909]
[1756655420663,0.231,4488.9,4488.8,0.4909]
[1756655420857,32.106,4489.2,4489.1,0.1946]
[1756655421057,3.2078,4489.4,4489.3,0.4909]
[1756655421257,3.2078,4489.4,4488.4,0.2963]
[1756655421258,3.4388,4489.4,4488.4,0.2963]
[1756655421658,3.4388,4489.4,4488.6,0.2963]
[1756655421858,3.4388,4489.4,4489.3,0.1946]
[1756655422059,3.4388,4489.4,4489.3,0.4909]
[1756655422259,3.2078,4489.4,4489.3,0.4909]
[1756655422554,3.4388,4489.4,4489.3,0.4909]
[1756655423259,3.2078,4489.4,4489.3,0.4909]
[1756655423467,3.4388,4489.4,4489.3,0.4909]
[1756655424464,3.4388,4489.4,4488.3,1.66319584]
[1756655424759,3.2078,4489.4,4489.3,0.4909]
[1756655425967,3.4388,4489.4,4489.3,0.4909]
[1756655426866,3.2078,4489.4,4489.3,0.4909]
[1756655427068,3.4388,4489.4,4489.3,0.4909]
[1756655428665,3.2078,4489.4,4489.3,0.4909]
[1756655429062,3.4388,4489.4,4489.3,0.4909]
[1756655431061,3.2078,4489.4,4489.3,0.4909]
[1756655431564,0.231,4489.5,4489.4,0.2963]
[1756655431764,0.231,4489.5,4489.4,0.4909]
[1756655432368,0.231,4489.5,4489.4,0.1946]
[1756655432564,3.2078,4490.1,4489.4,0.1946]
[1756655432770,3.2078,4490.1,4490.0,0.4909]
[1756655433365,3.4388,4490.1,4490.0,0.4909]
[1756655433566,3.2078,4490.1,4490.0,0.4909]
[1756655435068,1.36689584,4490.9,4489.3,3.2078]
[1756655435069,3.2078,4490.8,4490.4,0.1946]
[1756655435268,3.2078,4490.8,4489.6,1.36689584]
[1756655435269,3.2078,4490.8,4490.5,0.1946]
[1756655435467,0.231,4490.7,4490.5,0.1946]
[1756655435665,0.231,4490.7,4490.6,0.4909]
[1756655436765,0.231,4490.7,4490.6,0.2963]
[1756655437070,0.231,4490.7,4489.7,0.2963]
[1756655437570,0.22919837,4490.7,4489.7,0.2963]
[1756655438865,1.36689584,4490.1,4489.8,0.2795]
[1756655439272,0.231,4490.2,4489.9,0.192]
[1756655439572,0.231,4490.2,4490.1,0.4715]
[1756655439772,1.59789584,4490.4,4490.2,0.192]
[1756655439972,1.59789584,4490.4,4490.3,0.2795]
[1756655440570,1.59789584,4490.4,4489.4,0.2795]
[1756655440868,1.36689584,4490.4,4489.4,0.2795]
[1756655441072,0.231,4490.3,4490.2,0.4715]
[1756655442274,1.36689584,4490.4,4490.2,0.4715]
[1756655442469,1.36689584,4490.4,4490.3,0.2795]
[1756655442470,1.59789584,4490.4,4490.3,0.2795]
[1756655442776,1.59789584,4490.4,4490.3,0.4715]
[1756655442970,0.231,4490.4,4490.3,0.192]
[1756655443176,0.231,4490.4,4490.3,0.4715]
[1756655443688,1.36689584,4490.5,4490.3,0.4715]
[1756655443876,0.231,4490.4,4490.3,0.4715]
[1756655446567,0.231,4490.5,4490.4,0.2795]
[1756655447577,1.36689584,4490.7,4490.4,0.192]
[1756655447876,0.231,4490.6,4490.5,0.4715]
[1756655448177,0.231,4490.6,4490.5,0.2795]
[1756655449574,0.231,4490.6,4490.5,0.4715]
[1756655450574,3.2078,4490.6,4490.5,0.4715]
[1756655450775,3.4388,4490.6,4490.5,0.4715]
[1756655451778,3.4388,4490.6,4490.5,0.2795]
[1756655452283,3.4388,4490.6,4490.5,0.4715]
[1756655453384,3.4388,4490.6,4489.5,0.4715]
[1756655453385,7.4388,4490.6,4489.5,0.4715]
[1756655453686,1.36689584,4489.6,4489.5,0.4715]
[1756655453984,1.59789584,4489.6,4489.5,0.4715]
[1756655455682,1.59789584,4489.6,4489.0,0.4715]
[1756655456378,0.231,4489.5,4489.4,0.192]
[1756655456585,0.231,4489.5,4489.4,0.4715]
[1756655457178,1.36689584,4489.9,4489.5,0.2795]
[1756655457379,0.231,4489.8,4489.5,0.4715]
[1756655457780,0.231,4489.8,4489.5,0.2795]
[1756655458177,1.36689584,4489.6,4489.0,0.2795]
[1756655458383,3.2078,4489.5,4489.0,0.2795]
[1756655460283,3.2078,4489.5,4489.1,0.2795]
[1756655460485,1.36689584,4489.3,4488.5,0.2795]
[1756655460784,3.2078,4489.0,4488.5,0.192]
[1756655460985,3.2078,4489.0,4488.6,0.192]
[1756655461182,3.2078,4489.0,4488.4,3.2078]
[1756655461384,3.2078,4489.0,4488.9,0.192]
[1756655461582,3.2078,4489.0,4488.4,3.2078]
[1756655461786,4.57469584,4489.0,4488.5,0.192]
[1756655461986,4.57469584,4489.0,4488.6,0.2795]
[1756655462186,0.231,4488.9,4488.7,0.2795]
[1756655462484,0.231,4488.9,4488.5,0.2795]
[1756655462883,0.231,4488.9,4488.8,0.192]
[1756655463090,0.231,4488.9,4488.8,0.4715]
[1756655463389,0.231,4488.9,4488.4,3.2078]
[1756655463390,0.231,4488.9,4488.4,3.3998]
[1756655463588,0.231,4488.9,4488.5,0.2795]
[1756655464091,0.231,4488.9,4488.6,0.192]
[1756655464288,0.231,4488.9,4488.5,0.192]
[1756655464587,3.2078,4489.0,4488.6,0.192]
[1756655464787,0.231,4488.8,4488.7,0.2795]
[1756655464985,3.2078,4489.0,4488.7,0.4715]
[1756655465188,0.231,4488.9,4488.8,0.4715]
[1756655465589,3.2078,4489.0,4488.8,0.192]
[1756655465792,0.231,4488.9,4488.8,0.192]
[1756655466290,0.231,4488.9,4488.8,0.4715]
[1756655467288,3.2078,4489.0,4488.9,0.4715]
[1756655467491,3.2078,4489.0,4488.9,0.2795]
[1756655467785,3.2078,4489.0,4488.5,0.4754]
[1756655468092,0.231,4488.9,4488.7,0.1835]
[1756655468292,0.231,4488.9,4488.8,0.2919]
[1756655468494,0.231,4488.9,4488.8,0.4754]
[1756655469289,3.2078,4489.0,4488.8,0.4754]
[1756655469495,3.2078,4489.0,4488.9,0.4754]
[1756655469891,3.4388,4489.0,4488.9,0.4754]
[1756655470393,3.2078,4489.0,4488.9,0.4754]
[1756655473296,7.2078,4489.0,4487.9,0.2919]
[1756655473497,1.36689584,4488.7,4487.9,0.2919]
[1756655473695,3.2078,4489.0,4488.5,0.4754]
[1756655473993,0.231,4488.9,4488.8,0.1835]
[1756655474188,0.231,4488.9,4488.8,0.4754]
[1756655475398,3.2078,4489.0,4488.8,0.1835]
[1756655475590,3.2078,4489.0,4488.9,0.4754]
[1756655475790,3.4388,4489.0,4488.9,0.4754]
[1756655478894,3.4388,4489.0,4488.2,0.2919]
[1756655479800,3.2078,4489.0,4488.2,0.2919]
[1756655480097,0.231,4488.9,4488.2,0.2919]
[1756655481098,3.2078,4489.0,4488.8,0.1835]
[1756655481397,0.231,4488.9,4488.8,0.4754]
[1756655481597,3.2078,4489.0,4488.8,0.4754]
[1756655481798,3.4388,4489.0,4488.9,0.4754]
[1756655481996,3.2078,4489.0,4488.9,0.4754]
[1756655484100,3.2078,4489.5,4489.4,0.1835]
[1756655484304,3.2078,4489.5,4489.4,0.4754]
[1756655485304,3.2078,4489.5,4489.4,4.4754]
[1756655485805,3.2078,4490.0,4489.9,0.1835]
[1756655486004,3.2078,4490.0,4489.9,0.4754]
[1756655490511,3.2101,4490.0,4489.9,0.4754]
[1756655491910,0.0009,4489.9,4488.9,0.2919]
[1756655492104,0.0023,4489.1,4489.0,0.4754]
[1756655492410,0.0023,4489.1,4488.8,3.2078]
[1756655492411,0.0014,4488.9,4488.8,0.2919]
[1756655492610,0.0023,4488.9,4488.8,0.2919]
[1756655492813,0.0023,4488.9,4488.8,0.4754]
[1756655493508,0.231,4489.7,4488.9,0.2919]
[1756655494017,0.2309,4489.6,4488.9,0.2919]
[1756655494310,0.0009,4489.6,4488.9,0.2919]
[1756655494514,0.2314,4489.5,4489.4,0.1835]
[1756655494709,0.2323,4489.5,4489.4,0.4754]
[1756655495716,3.2078,4489.9,4489.4,0.4754]
[1756655495920,3.4401,4489.9,4489.8,0.4754]
[1756655496812,3.2078,4489.9,4489.8,0.4754]
[1756655500412,3.2078,4490.4,4490.3,0.1871]
[1756655500612,3.4378,4490.4,4490.3,0.4655]
[1756655501716,3.2078,4490.4,4490.3,0.4655]
[1756655501916,3.4378,4490.4,4490.3,0.4655]
[1756655504312,3.4378,4490.4,4489.8,0.4655]
[1756655504513,3.4378,4490.4,4489.8,0.1871]
[1756655504716,0.23,4490.3,4489.8,0.4655]
[1756655504918,0.23,4490.3,4489.8,0.1871]
[1756655505116,0.23,4490.3,4490.0,0.2784]
[1756655505615,0.23,4490.3,4489.2,0.2784]
[1756655505913,0.23,4490.3,4489.4,0.2784]
[1756655506115,0.23,4490.3,4489.4,0.4655]
[1756655506517,0.23,4490.3,4489.5,0.4655]
[1756655507112,0.23,4490.2,4489.7,0.4655]
[1756655507409,0.23,4490.2,4489.6,1.36689584]
[1756655507609,3.2078,4490.4,4490.3,0.4655]
[1756655507812,3.4378,4490.4,4490.3,0.4655]
[1756655508319,3.2078,4490.4,4490.3,0.4655]
[1756655508615,3.4378,4490.4,4490.3,0.2784]
[1756655509421,3.2078,4490.4,4490.3,0.2784]
[1756655509620,3.4378,4490.4,4490.3,0.2784]
[1756655510017,3.4378,4490.4,4489.1,0.23]
[1756655510221,3.2078,4489.9,4489.2,0.2784]
[1756655510617,3.2078,4489.9,4489.2,0.4655]
[1756655510821,1.36689584,4489.7,4488.9,0.4655]
[1756655511021,0.23,4489.6,4488.9,0.4655]
[1756655514324,3.2078,4489.4,4489.0,0.1871]
[1756655514627,3.2078,4489.4,4489.1,0.2784]
[1756655515925,0.23,4489.3,4489.1,0.2784]
[1756655516430,0.23,4489.3,4488.7,0.4655]
[1756655519329,0.23,4489.3,4488.8,0.2784]
[1756655519633,0.23,4489.3,4489.0,0.2784]
[1756655519828,3.2078,4489.4,4489.0,0.2784]
[1756655520132,0.23,4489.3,4489.2,0.2784]
[1756655520436,0.23,4489.3,4489.2,0.4655]
[1756655520629,3.2078,4489.4,4489.3,0.4655]
[1756655520830,3.2078,4489.9,4489.8,0.4655]
[1756655521733,3.2078,4489.9,4489.1,0.2784]
[1756655522237,0.23,4489.8,4489.1,0.2784]
[1756655523434,3.2078,4489.2,4488.5,3.2078]
[1756655523632,3.2078,4489.2,4488.6,0.4655]
[1756655523834,3.2078,4489.2,4488.1,0.2784]
[1756655523835,3.2078,4488.7,4488.1,0.2784]
[1756655524041,3.4378,4488.7,4488.2,0.2784]
[1756655524241,0.23,4488.6,4488.1,0.2784]
[1756655524548,3.2078,4488.7,4488.6,0.4655]
[1756655526743,3.2078,4488.7,4488.6,4.68827999]
[1756655526936,3.6738,4489.9,4489.8,0.1871]
[1756655527246,3.6738,4489.9,4489.5,0.2784]
[1756655527439,0.1907,4489.1,4489.0,0.4171]
[1756655527745,0.23,4489.8,4489.1,0.3021]
[1756655528045,0.2999,4489.7,4489.1,0.3021]
[1756655528344,0.4888,4489.7,4489.6,0.4894]
[1756655528646,0.7188,4489.7,4489.6,0.4894]
[1756655529243,0.7188,4489.7,4489.6,0.1873]
[1756655529738,0.7188,4489.7,4489.2,1.36689584]
[1756655529944,0.4888,4489.4,4489.3,0.4894]
[1756655533035,0.1889,4489.4,4489.3,0.4894]
[1756655534447,0.5299,4489.7,4489.3,0.4894]
[1756655534646,0.2999,4489.8,4489.5,0.1873]
[1756655534848,3.4378,4489.9,4489.8,0.4894]
[1756655535044,3.2078,4489.9,4489.8,0.4894]
[1756655535444,3.6966,4489.9,4489.8,0.4894]
[1756655539149,3.6966,4489.9,4489.0,0.3021]
[1756655539150,3.3967,4489.9,4489.0,0.3021]
[1756655539450,3.6966,4489.9,4489.8,0.4894]
[1756655540250,3.2078,4489.9,4489.8,0.4894]
[1756655542150,3.3967,4489.9,4489.1,0.3021]
[1756655542352,0.4888,4489.2,4489.1,0.1873]
[1756655543152,0.4888,4489.2,4489.1,0.4894]
[1756655543452,0.4888,4489.2,4489.1,0.1873]
[1756655543652,3.2078,4489.3,4489.0,0.1873]
[1756655543852,0.4888,4489.1,4489.0,0.4894]
[1756655548852,0.2999,4489.0,4488.8,0.3021]
[1756655549057,0.4888,4488.4,4488.3,3.3951]
[1756655549350,0.4888,4488.4,4488.3,3.6251]
[1756655549554,0.4888,4488.4,4488.3,3.9272]
[1756655550251,0.4888,4488.4,4488.3,3.6972]
[1756655550458,0.4888,4488.4,4488.3,3.3951]
[1756655550650,0.4888,4488.4,4488.3,0.4894]
[1756655551552,3.2078,4488.6,4488.3,0.4894]
[1756655551758,3.2078,4488.6,4488.2,1.59689584]
[1756655551759,0.2999,4488.9,4488.8,0.4894]
[1756655551950,0.4888,4488.9,4488.8,0.4894]
[1756655553356,0.2999,4488.8,4488.7,0.1873]
[1756655553549,0.1889,4488.8,4488.3,0.3021]
[1756655553753,0.4888,4488.2,4488.1,0.4173]
[1756655554056,3.5077,4488.5,4488.1,1.78419584]
[1756655554260,0.4888,4488.4,4488.3,0.4894]
[1756655559462,0.5299,4488.9,4488.4,0.2732]
[1756655559764,0.5299,4488.9,4488.1,1.59689584]
[1756655559765,0.7317,4488.9,4488.8,0.4746]
[1756655559965,0.5017,4488.9,4488.8,0.4746]
[1756655561163,0.2999,4488.8,4488.3,1.36689584]
[1756655561367,0.5017,4488.5,4488.4,0.4746]
[1756655561963,3.2078,4489.0,4488.5,0.2732]
[1756655562168,3.9395,4489.0,4488.9,0.4746]
[1756655562369,3.9395,4489.0,4488.9,0.2732]
[1756655562971,3.9395,4489.0,4488.3,1.36689584]
[1756655563164,0.2999,4488.9,4488.4,0.2732]
[1756655563369,3.4378,4489.0,4488.4,0.2732]
[1756655563370,0.2018,4488.5,4488.4,0.4746]
[1756655563567,0.5017,4488.5,4488.4,0.4746]
[1756655566673,0.2018,4488.5,4488.4,0.4746]
[1756655566873,3.4378,4489.0,4488.5,0.2732]
[1756655567070,3.4096,4489.0,4488.9,0.4746]
[1756655567570,3.7095,4489.0,4488.9,0.4746]
[1756655567972,3.2078,4489.0,4488.9,0.4746]
[1756655569480,3.4378,4489.6,4488.9,0.2014]
[1756655569675,3.4096,4489.6,4489.5,0.2014]
[1756655569882,3.7095,4489.6,4489.5,0.4746]
[1756655570567,3.4096,4489.6,4489.5,0.4746]
[1756655570968,3.2078,4489.6,4489.5,0.4746]
[1756655573875,3.7095,4489.6,4489.5,0.4746]
[1756655574671,0.2999,4491.3,4490.4,0.2014]
[1756655574966,0.5017,4491.3,4491.2,5.04929584]
[1756655575569,0.2999,4491.6,4491.2,5.04929584]
[1756655575769,3.2078,4491.9,4491.2,4.57469584]
[1756655576173,0.5017,4491.8,4491.7,0.2014]
[1756655576473,0.2999,4491.7,4491.2,4.57469584]
[1756655576671,0.5017,4491.4,4491.3,0.4746]
[1756655577377,0.2999,4491.4,4491.3,0.4746]
[1756655577577,3.4096,4491.9,4491.8,0.4746]
[1756655578077,3.7095,4491.9,4491.8,0.4746]
[1756655578280,3.2078,4491.9,4491.8,0.4746]
[1756655578478,3.5077,4491.9,4491.8,0.4746]
[1756655578973,3.7095,4491.9,4491.8,0.4746]
[1756655579169,3.7095,4491.9,4491.8,0.7036]
[1756655580575,0.2999,4491.8,4491.2,3.2078]
[1756655580775,0.5017,4491.4,4491.3,0.7036]
[1756655580976,0.5017,4491.4,4491.3,0.4746]
[1756655581372,0.5017,4491.4,4491.3,0.7036]
[1756655581981,0.5017,4491.4,4491.3,2.07049584]
[1756655582784,0.2018,4491.4,4491.3,2.07049584]
[1756655583279,0.2999,4491.6,4491.3,2.07049584]
[1756655583484,0.2018,4491.6,4491.5,0.4746]
[1756655583781,0.5017,4491.6,4491.5,0.4746]
[1756655584084,0.5017,4491.6,4491.5,1.84149584]
[1756655587793,0.5017,4491.6,4491.5,0.4746]
[1756655587984,0.5017,4491.6,4491.5,2.07049584]
[1756655590089,3.2078,4491.9,4491.6,0.2838]
[1756655590291,3.405,4491.9,4491.8,0.4772]
[1756655590786,3.688,4491.9,4491.8,0.4772]
[1756655592686,0.1972,4491.3,4490.5,0.2838]
[1756655592893,0.1972,4490.8,4490.7,3.2078]
[1756655593091,0.4802,4490.8,4490.7,3.2078]
[1756655595691,4.4802,4490.8,4490.7,3.2078]
[1756655595886,4.7092,4490.8,4490.7,3.2078]
[1756655596695,0.4802,4490.2,4490.1,3.2078]
[1756655599698,0.1972,4489.7,4489.6,4.99709584]
[1756655599998,0.4802,4489.7,4489.6,5.28089584]
[1756655600595,0.4802,4489.7,4489.6,4.99709584]
[1756655600795,0.4802,4489.7,4489.6,5.28089584]
[1756655601197,0.4802,4489.7,4489.6,3.2078]
[1756655602893,0.4802,4489.7,4489.4,0.2838]
[1756655603791,0.4802,4489.2,4489.1,4.76809584]
[1756655603995,0.4802,4489.2,4489.1,3.914]
[1756655604499,0.4802,4489.2,4489.1,3.685]
[1756655609994,0.4802,4489.2,4489.1,3.4916]
[1756655610601,0.4802,4489.2,4489.1,3.685]
[1756655616202,0.229,4489.9,4489.1,3.685]
[1756655616506,0.1972,4489.2,4489.1,3.685]
[1756655616707,0.1972,4489.2,4489.1,3.2078]
[1756655616900,0.1972,4489.2,4489.1,3.4916]
[1756655617106,0.1972,4489.2,4489.1,3.685]
[1756655618309,0.4923,4489.2,4489.1,3.685]
[1756655619503,0.1972,4489.2,4489.1,3.685]
[1756655619700,0.229,4489.9,4489.1,3.685]
[1756655619896,0.4832,4489.7,4489.6,0.4779]
[1756655621410,0.4832,4489.2,4489.1,3.6857]
[1756655621608,0.4832,4489.2,4489.1,0.4779]
[1756655623511,0.2951,4489.5,4489.1,0.4779]
[1756655623812,0.2951,4489.6,4488.6,0.2784]
[1756655624509,0.2951,4489.4,4488.6,0.2784]
[1756655625011,0.4832,4489.4,4489.3,0.4779]
[1756655628610,0.7122,4489.4,4489.3,0.4779]
[1756655628815,0.4171,4489.4,4488.6,0.2784]
[1756655629005,0.2951,4489.3,4488.6,0.2784]
[1756655629204,0.229,4489.4,4488.6,0.4779]
[1756655629205,0.1881,4488.7,4488.6,0.4779]
[1756655629512,0.4832,4488.7,4488.6,0.4779]
[1756655629807,0.1881,4488.7,4488.6,0.4779]
[1756655630009,0.2951,4489.3,4488.7,0.2784]
[1756655630413,0.4832,4489.3,4489.2,0.1995]
[1756655630615,0.4832,4489.3,4489.2,0.4779]
[1756655632414,0.4832,4489.3,4488.5,3.2078]
[1756655632612,0.2951,4489.1,4488.6,0.2784]
[1756655632814,0.4832,4488.7,4488.6,0.4779]
[1756655633908,0.1881,4488.8,4488.7,0.2784]
[1756655634112,0.4832,4488.8,4488.7,0.4779]
[1756655634312,0.1881,4488.9,4488.8,0.2784]
[1756655634513,0.1881,4488.9,4488.8,0.4779]
[1756655635315,0.4832,4488.9,4488.8,0.4779]
[1756655642740,4.99655708,4488.9,4488.1,0.4779]
[1756655642928,0.4832,4487.9,4487.8,0.4779]
[1756655643237,0.7122,4487.9,4487.8,0.4779]
[1756655648641,0.229,4487.9,4487.4,3.2078]
[1756655648842,0.4938,4487.5,4487.4,3.3899]